[Event "10th Cherry Blossom Classic 2023"]
[Site "Dulles"]
[Date "2023.05.27"]
[Round "4.11"]
[White "Prabhu, Naveen"]
[Black "Muzychuk, Anna"]
[Result "0-1"]
[ECO "C54"]
[WhiteElo "2138"]
[BlackElo "2504"]
[Annotator "TA"]
[PlyCount "50"]
[EventDate "2023.05.24"]
[EventType "swiss"]
[EventCountry "USA"]
[SourceTitle "playchess.com"]
[Source "ChessBase"]
[SourceQuality "1"]
[TimeControl "5400+30"]

{[%evp 9,50,15,19,21,25,15,19,14,16,20,36,33,31,0,24,0,56,38,36,0,10,-25,-7,-54,-49,-55,-51,-43,-43,-132,-143,-447,-448,-442,-436,-437,-438,-1188,-1317,-1350,-1281,-29990,-29991]} 1. e4 {[%emt 0:00:02]} e5 {[%emt 0:01:15]} 2. Nf3 {[%emt 0:00:08]} Nc6 {[%emt 0:00:05]} 3. Bc4 {[%emt 0:00:11]} Bc5 {[%emt 0:00:06]} 4. c3 {[%emt 0:00:12]} Nf6 {[%emt 0:00:06]} 5. d3 {[%emt 0:00:05]} d6 {[%emt 0:00:10]} ({But not} 5... d5 6. exd5 Nxd5 7. Qb3 $14) 6. a4 {[%emt 1:32:52] Black must now prevent b4. C54: Giuoco Piano: 4 c3 Nf6, main lines with 5 d4 and 5 d3.} a5 {[%emt 0:00:10]} 7. Bg5 {[%emt 0:00:00]} h6 {[%emt 0:01:03]} 8. Bh4 {[%emt 0:00:00] The position is equal.} g5 {[%emt 0:02:35]} 9. Bg3 {[%emt 0:00:00] [#]} Ne7 $146 {[%emt 0:00:48]} ({Predecessor:} 9... O-O 10. h4 g4 11. Nh2 Kg7 12. Nd2 Qe7 13. Qe2 Rg8 14. Nhf1 Nh5 15. Ne3 Bxe3 16. Qxe3 {0-1 Naiditsch,A (2660)-Eljanov,P (2691) ESP-chT CECLUB Honor 2021 (7.1)}) 10. O-O {[%emt 0:00:00]} Bb6 {[%emt 0:01:25]} 11. Nbd2 {[%emt 0:00:00]} Ng6 {[%emt 0:00:30]} 12. d4 {[%emt 0:00:00][%cal Rd4e5]} Qe7 {[%emt 0:01:20]} (12... Nd7 $11) 13. Bb3 {[%emt 0:00:00]} c6 {[%emt 0:14:35]} 14. Nc4 {[%emt 0:00:00]} Bc7 {[%emt 0:00:06]} 15. Re1 {[%emt 0:00:00]} h5 $1 {[%emt 0:06:52] Strongly threatening ...h4.} 16. h4 {[%emt 0:00:00]} (16. h3 $11 {is more appropriate.}) 16... Nh7 $1 $15 {[%emt 0:03:45][%cal Rg5h4]} 17. hxg5 {[%emt 0:00:00]} Nxg5 {[%emt 0:06:52]} 18. dxe5 {[%emt 0:00:00]} dxe5 {[%emt 0:01:06] [#] Hoping for ...Bg4.} 19. Nxg5 {[%emt 0:00:00]} ({Only move:} 19. Ne3 $1 $15) 19... Qxg5 $17 {[%emt 0:00:09]} 20. Nd6+ $2 {[%emt 0:00:00][%mdl 8192] Now White is beyond hope.} (20. Qf3 $17 Be6 21. Qe3 Qxe3 22. fxe3 (22. Rxe3 O-O-O $17)) 20... Bxd6 $19 {[%emt 0:00:10]} 21. Qxd6 {[%emt 0:00:00]} h4 {[%emt 0:00:58]} 22. Qc7 {[%emt 0:00:00]} Rh7 {[%emt 0:03:35]} (22... hxg3 {gets mated.} 23. Qxf7+ Kd8 24. Red1+) 23. Bh2 {[%emt 0:00:00]} (23. Rad1 $142 hxg3 24. fxg3) 23... Bh3 {[%emt 0:00:27][%csl Gh3][%cal Rg5g2] [#]} 24. g3 {[%emt 0:00:00]} hxg3 {[%emt 0:01:57]} 25. fxg3 {[%emt 0:04:26]} Qd2 {[%emt 0:00:37] Weighted Error Value: White=0.83/Black=0.06 (flawless)} 0-1

[Event "10th Cherry Blossom Classic 2023"]
[Site "Dulles"]
[Date "2023.05.27"]
[Round "4.12"]
[White "Kanli, Alperen"]
[Black "Plotkin, Mark"]
[Result "0-1"]
[ECO "A68"]
[WhiteElo "2111"]
[BlackElo "2341"]
[Annotator "TA"]
[PlyCount "162"]
[EventDate "2023.05.24"]
[EventType "swiss"]
[EventCountry "USA"]
[SourceTitle "playchess.com"]
[Source "ChessBase"]
[SourceQuality "1"]
[TimeControl "5400+30"]

{[%evp 22,162,13,-43,0,-40,-48,-54,-56,-48,-30,-71,-63,-57,-63,-66,-70,-129,-137,-117,-145,-127,-148,-138,-101,-161,-155,-166,-157,-625,-607,-586,-411,-385,-385,-365,-271,-247,-193,-260,-256,-255,-152,-144,-141,-154,-152,-157,-157,-157,-155,-157,-102,-150,-148,-150,-150,-150,-151,-151,-150,-154,-125,-125,-125,-125,-125,-125,-125,-153,-142,-142,-142,-145,-118,-118,0,-145,-145,-161,-118,-119,-119,-155,-151,-311,-311,-311,-311,-311,-311,-372,-372,-454,-372,-371,-371,-337,-8,-431,-431,-483,-483,-483,-469,-469,-469,-469,-469,-469,-469,-469,-469,-469,-469,-469,-469,-469,-469,-469,-469,-469,-469,-29967,-29969,-29965,-29964,-12530,-12439,-29973,-29972,-29971,-29972,-29986,-29986,-29991,-29992,-29992,-29992,-29992,-29992,-29997,-29998]} 1. d4 {[%emt 0:00:04]} g6 {[%emt 0:00:31]} 2. c4 {[%emt 0:00:07]} Bg7 {[%emt 0:00:02]} 3. Nc3 {[%emt 0:00:10]} d6 {[%emt 0:00:08]} 4. e4 {[%emt 0:00:08]} Nf6 {[%emt 0:00:32]} 5. f4 {[%emt 0:00:08]} O-O {[%emt 0:00:09]} 6. Nf3 {[%emt 0:00:04]} c5 {[%emt 0:00:37]} 7. d5 {[%emt 0:00:09]} e6 {[%emt 0:00:29]} 8. Be2 {[%emt 0:00:03]} exd5 {[%emt 0:00:17]} 9. cxd5 {[%emt 0:00:02]} b5 {[%emt 0:01:36]} 10. e5 {[%emt 0:03:15]} dxe5 {[%emt 0:00:25]} 11. fxe5 {[%emt 0:00:04]} Ng4 {[%emt 0:00:14]} 12. Bf4 {[%emt 0:08:01]} (12. Bg5 $11 Qb6 13. O-O (13. Nxb5 Nxe5 14. Nxe5 Bxe5 $17)) 12... Nd7 {[%emt 0:05:19][%cal Rg4e5] A68: Modern Benoni: Four Pawns Attack without 9...Re8.} (12... b4 $5 {[%cal Rb4c3]} 13. Ne4 Nd7 $11) 13. Nxb5 {[%emt 0:04:59]} (13. e6 $5 {[%cal Re6d7]} Nb6 14. O-O $11) 13... Ndxe5 {[%emt 0:01:21] [#]} 14. Nxe5 $146 {[%emt 0:00:06]} ({Predecessor:} 14. O-O Qb6 15. a4 c4+ 16. Kh1 Nxf3 17. Bxf3 Nf2+ 18. Rxf2 Qxf2 19. Bg3 Qxb2 20. Rb1 {0-1 Kreiling,C (2070)-Heinelt,M (2204) Hessenliga 0102 2001 (8.6)}) 14... Nxe5 {[%emt 0:00:16] Black is slightly better.} 15. O-O {[%emt 0:00:23]} Qb6 {[%emt 0:04:35] White must now prevent ...c4+.} 16. Be3 {[%emt 0:05:13]} Bd7 {[%emt 0:07:12]} 17. a4 {[%emt 0:04:01]} a6 {[%emt 0:02:32]} 18. a5 {[%emt 0:00:35]} Qb8 {[%emt 0:00:26]} 19. Na3 {[%emt 0:02:33]} (19. Nc3 $1 $15) 19... Qxb2 $17 {[%emt 0:02:10]} 20. Bxc5 {[%emt 0:02:39]} Rfc8 $36 {[%emt 0:00:47][%mdl 2048] Black is in control.} 21. Bb6 {[%emt 0:08:10] [#]} Bf5 $1 {[%emt 0:05:22] Black is much more active.} 22. d6 {[%emt 0:06:04]} Qb4 {[%emt 0:09:13] ...Nd7 is the strong threat.} 23. Nb1 {[%emt 0:21:15]} (23. Nc4 $17 Nxc4 24. Ra4) 23... Nd7 $19 {[%emt 0:06:40]} 24. Ra4 {[%emt 0:01:55]} Qb2 {[%emt 0:00:21]} 25. Qd2 {[%emt 0:07:07]} (25. Na3 $17) 25... Rc2 {[%emt 0:04:27][%mdl 64] Skewer} (25... Bxb1 26. Qxb2 Bxb2 27. Rxb1 $14) 26. Qd5 {[%emt 0:00:07]} Rac8 {[%emt 0:02:10]} 27. Bxa6 {[%emt 0:10:21]} Nxb6 {[%emt 0:01:43]} 28. axb6 {[%emt 0:01:05]} Qxb6+ {[%emt 0:00:15]} 29. Kh1 {[%emt 0:00:01]} R8c5 {[%emt 0:11:24]} 30. Qa8+ {[%emt 0:03:26]} Bf8 {[%emt 0:00:02] Hoping for ...Bd7. This pair of bishops is nice.} 31. Rd4 {[%emt 0:02:54]} (31. Na3 $2 Rc1 32. Qf3 R5c3 $19) 31... Bd7 {[%emt 0:06:19]} ({Better is} 31... Rf2 $19 32. Rdd1 Rxf1+ 33. Bxf1 Rc6) 32. Qb7 $17 {[%emt 0:01:29]} Qxb7 {[%emt 0:01:56]} 33. Bxb7 {[%emt 0:00:02]} Rc1 {[%emt 0:02:05][%cal Rc1f1]} 34. Rdd1 {[%emt 0:00:41]} Rxd1 {[%emt 0:00:05]} 35. Rxd1 {[%emt 0:00:06] [#]} Bxd6 $1 {[%emt 0:00:17][%mdl 576] Deflection, Back Rank} 36. g3 {[%emt 0:02:19]} (36. Nd2 Ba4) 36... Rb5 {[%emt 0:01:44]} ({Black should play} 36... Bh3 $1 {[%cal Oc5c7]} 37. Nd2 Be7) 37. Be4 {[%emt 0:02:58]} (37. Bf3 $142) 37... Rb6 {[%emt 0:00:27]} 38. Nc3 {[%emt 0:00:01]} Bg4 {[%emt 0:00:19]} 39. Nd5 {[%emt 0:00:57]} Bxd1 {[%emt 0:00:05]} 40. Nxb6 {[%emt 0:00:04][%mdl 4096] Endgame KBB-KBN} Kg7 {[%emt 0:00:20]} 41. Kg2 {[%emt 0:00:15]} h5 {[%emt 0:00:33]} 42. Nd5 {[%emt 0:01:04]} Bg4 {[%emt 0:00:35]} 43. Ne3 {[%emt 0:00:19]} Be6 {[%emt 0:00:06]} 44. Bd5 {[%emt 0:00:08]} Bd7 {[%emt 0:00:05]} 45. Kf3 {[%emt 0:00:37]} Bh3 {[%emt 0:01:02]} 46. Bc4 {[%emt 0:00:23]} Bc5 {[%emt 0:01:22]} 47. Bd3 {[%emt 0:00:44]} Kh6 {[%emt 0:00:56]} 48. Bc4 {[%emt 0:00:16]} Kg7 {[%emt 0:00:33]} 49. Bd3 $1 {[%emt 0:00:03]} Kf6 {[%emt 0:01:11]} 50. Bc4 {[%emt 0:00:53]} Ba7 {[%emt 0:00:37]} 51. Nd5+ {[%emt 0:00:12]} Kg7 {[%emt 0:00:24]} 52. Ne3 {[%emt 0:00:10]} g5 {[%emt 0:01:07][%cal Bg6g5,Bg5h4][%mdl 32]} 53. Nc2 $2 {[%emt 0:02:06]} (53. Ke2 $17) 53... Bg1 $19 {[%emt 0:00:45]} 54. Ne3 {[%emt 0:00:44]} Bxh2 {[%emt 0:00:13]} 55. Kf2 {[%emt 0:00:38]} h4 {[%emt 0:01:08]} 56. gxh4 {[%emt 0:00:12]} gxh4 {[%emt 0:00:01]} 57. Ng2 {[%emt 0:03:00]} Bg3+ {[%emt 0:00:15]} 58. Kf3 {[%emt 0:00:01]} f5 {[%emt 0:00:38] aiming for ...Bg4+.} 59. Ne3 {[%emt 0:00:23] [#] Dodges Bg4+} Bb8 $2 {[%emt 0:02:03]} (59... Kf6 $1 $19 {And now ...f4 would win.} 60. Bd5 f4) 60. Bf1 $2 {[%emt 0:00:24][%mdl 8192]} (60. Be6 $11) 60... Bxf1 {[%emt 0:00:02]} 61. Nxf5+ {[%emt 0:00:06]} Kf6 {[%emt 0:00:18]} 62. Nxh4 {[%emt 0:00:07]} Kg5 {[%emt 0:00:29]} 63. Ng2 {[%emt 0:00:02]} Ba6 {[%emt 0:00:07]} 64. Ne3 {[%emt 0:00:11]} Bb7+ {[%emt 0:00:04]} 65. Ke2 {[%emt 0:00:07]} Kf4 {[%emt 0:00:07]} 66. Nd1 {[%emt 0:00:36]} Ke4 {[%emt 0:00:17]} 67. Kd2 {[%emt 0:00:41]} Bf4+ {[%emt 0:00:24]} 68. Kc3 {[%emt 0:00:08]} Ba6 {[%emt 0:00:15]} ({Don't go for} 68... Be5+ $2 69. Kd2 $19) 69. Nb2 {[%emt 0:00:11]} Be5+ {[%emt 0:00:08]} 70. Kb3 {[%emt 0:00:03]} Kd4 {[%emt 0:00:15]} 71. Kb4 {[%emt 0:00:25]} Be2 {[%emt 0:00:26]} ({Wrong is} 71... Bd6+ $2 72. Kb3 $19) 72. Na4 {[%emt 0:00:24]} (72. Kb3 $19 Bg4 73. Na4) 72... Bd6+ {[%emt 0:00:06]} 73. Ka5 {[%emt 0:00:15]} Bc7+ {[%emt 0:01:29]} 74. Kb4 {[%emt 0:00:09]} Bc4 {[%emt 0:00:41] ( -> ...Bd8)} 75. Ka3 {[%emt 0:01:08]} Bd6+ {[%emt 0:03:45] Black mates.} 76. Kb2 {[%emt 0:00:02]} Kd3 {[%emt 0:00:03]} 77. Kb1 {[%emt 0:00:26]} Bb3 {[%emt 0:00:16]} 78. Nb2+ {[%emt 0:00:35]} Kd2 {[%emt 0:00:04]} 79. Ka1 {[%emt 0:00:21]} Be7 {[%emt 0:00:12]} 80. Kb1 {[%emt 0:00:10]} Bf8 {[%emt 0:00:04]} 81. Ka1 {[%emt 0:00:04]} Kc2 {[%emt 0:00:06] Weighted Error Value: White=0.36/Black=0.33} 0-1

[Event "10th Cherry Blossom Classic 2023"]
[Site "Dulles"]
[Date "2023.05.27"]
[Round "4.13"]
[White "Zhukova, Natalia"]
[Black "Chabris, Christopher"]
[Result "1/2-1/2"]
[ECO "A17"]
[WhiteElo "2324"]
[BlackElo "2053"]
[Annotator "TA"]
[PlyCount "76"]
[EventDate "2023.05.24"]
[EventType "swiss"]
[EventCountry "USA"]
[SourceTitle "playchess.com"]
[Source "ChessBase"]
[SourceQuality "1"]
[TimeControl "5400+30"]

{[%evp 18,76,28,26,20,25,23,17,35,16,33,22,29,16,22,4,16,11,117,118,124,135,176,161,176,0,0,0,0,0,5,-81,-81,-88,-88,-88,-89,-82,-89,-86,-87,-81,-81,-81,-82,-158,-158,-148,0,0,0,0,0,0,0,0,0,0,0,0,0]} 1. Nf3 {[%emt 0:00:05]} Nf6 {[%emt 0:00:09]} 2. c4 {[%emt 0:00:38]} e6 {[%emt 0:00:13]} 3. Nc3 {[%emt 0:00:28]} Bb4 {[%emt 0:01:20]} 4. Qc2 {[%emt 0:00:45]} O-O {[%emt 0:01:04]} 5. a3 {[%emt 0:00:13]} Bxc3 {[%emt 0:00:28]} 6. Qxc3 {[%emt 0:00:07]} b6 {[%emt 0:01:48]} 7. b4 {[%emt 0:00:42]} Bb7 {[%emt 0:01:03]} 8. Bb2 {[%emt 0:00:16]} d6 {[%emt 0:02:16]} 9. g3 {[%emt 0:00:26]} Nbd7 {[%emt 0:01:56]} 10. Bg2 {[%emt 0:00:17]} a6 {[%emt 0:15:06] A17: English Opening: 1...Nf6 with ...Bb4.} 11. O-O {[%emt 0:01:18]} c5 {[%emt 0:01:53]} 12. d3 {[%emt 0:26:49]} Rc8 {[%emt 0:10:03] [#]} 13. Qb3 $146 {[%emt 0:10:06]} ({Predecessor:} 13. Rfc1 b5 14. Qd2 bxc4 15. dxc4 Ne4 16. Qe3 d5 17. cxd5 Bxd5 18. Ne5 Nxe5 19. Bxe5 Nf6 20. Bxf6 Qxf6 21. Bxd5 exd5 22. bxc5 {1-0 Bernal Moro,L (2428)-Sanchez Aller,F (2299) Albarino op 2006 (4)}) 13... Re8 {[%emt 0:14:16]} 14. Rab1 {[%emt 0:02:17]} Bc6 {[%emt 0:04:30]} 15. Nd2 {[%emt 0:08:34]} d5 {[%emt 0:13:42]} 16. Bxf6 {[%emt 0:07:07]} Nxf6 {[%emt 0:06:39]} 17. bxc5 {[%emt 0:05:27]} dxc4 {[%emt 0:03:34]} (17... bxc5 $11 {remains equal.} 18. Qb6 Qd6) 18. Nxc4 $16 {[%emt 0:02:45] aiming for Bxc6.} ({And not} 18. Qxb6 Bxg2 19. Qxd8 Rexd8 $11) 18... Bxg2 {[%emt 0:02:04]} 19. Kxg2 {[%emt 0:00:03]} Rxc5 {[%emt 0:02:18]} 20. Qxb6 {[%emt 0:03:29]} Qd5+ {[%emt 0:00:50]} 21. e4 $2 {[%emt 0:13:49]} (21. f3 $18) 21... Nxe4 $1 $11 {[%emt 0:02:16] And now ...Nc3+ would win.} 22. Ne3 $1 {[%emt 0:06:46]} Qxd3 {[%emt 0:00:40]} 23. Rfd1 {[%emt 0:01:16]} Qxa3 {[%emt 0:01:24]} (23... Qe2 $2 24. Rb2 Qh5 25. Rd8 $18) 24. Rd8 {[%emt 0:03:27] [#]} (24. Rd4 $1 $11 Nf6 25. Nc4) 24... Rc8 $1 $17 {[%emt 0:01:36]} 25. Rxe8+ {[%emt 0:00:25]} Rxe8 {[%emt 0:00:04]} 26. Qc6 {[%emt 0:00:05][%csl LRe4,LRe8] [#]} Nf6 {[%emt 0:01:23]} 27. Ng4 {[%emt 0:00:03][%mdl 64] Threatens to win with Nxf6+. Deflection} Rd8 {[%emt 0:01:53]} 28. Qc7 {[%emt 0:03:33]} Rf8 {[%emt 0:05:52]} 29. Nxf6+ {[%emt 0:00:26]} gxf6 {[%emt 0:00:08][%mdl 4096] Endgame KQR-KQR} 30. Qf4 {[%emt 0:03:05]} Qd3 {[%emt 0:00:14]} 31. Rb4 {[%emt 0:00:32]} (31. Ra1 $142) 31... Qd5+ {[%emt 0:01:18]} 32. f3 {[%emt 0:00:29][%cal Of4h6]} Rd8 {[%emt 0:01:09]} ({Better is} 32... Qg5 $17 {Hoping for ...a5.} 33. Qxg5+ fxg5) 33. Qxf6 $11 {[%emt 0:00:32] The position is equal.} Qd2+ {[%emt 0:01:23]} 34. Kh3 {[%emt 0:00:06] White threatens Rg4+ and mate.} Qxb4 {[%emt 0:00:52]} 35. Qxd8+ {[%emt 0:00:06]} Qf8 {[%emt 0:00:41]} 36. Qg5+ {[%emt 0:00:06]} Qg7 {[%emt 0:00:51]} 37. Qd8+ {[%emt 0:00:06]} Qf8 {[%emt 0:00:07]} 38. Qg5+ {[%emt 0:00:05]} Qg7 {[%emt 0:00:04] What a bad dream for Black.   Weighted Error Value: White=0.18 (very precise) /Black=0.17 (very precise)} 1/2-1/2

[Event "10th Cherry Blossom Classic 2023"]
[Site "Dulles"]
[Date "2023.05.27"]
[Round "4.14"]
[White "Paul, Justin"]
[Black "Slade, Theodore"]
[Result "1-0"]
[ECO "C65"]
[WhiteElo "2314"]
[BlackElo "2021"]
[Annotator "TA"]
[PlyCount "81"]
[EventDate "2023.05.24"]
[EventType "swiss"]
[EventCountry "USA"]
[SourceTitle "playchess.com"]
[Source "ChessBase"]
[SourceQuality "1"]
[TimeControl "5400+30"]

{[%evp 9,81,29,25,2,9,21,6,10,17,22,18,23,23,0,10,3,39,36,31,0,4,0,0,0,0,0,31,44,48,54,49,45,91,94,100,97,112,95,106,111,116,97,98,94,138,133,147,131,156,148,193,175,229,234,222,235,256,254,367,354,543,533,567,552,668,588,550,499,649,656,704,714,1371,1329]} 1. e4 {[%emt 0:00:03]} e5 {[%emt 0:00:08]} 2. Nf3 {[%emt 0:00:08]} Nc6 {[%emt 0:00:10]} 3. Bb5 {[%emt 0:00:08]} Nf6 {[%emt 0:00:08]} 4. d3 {[%emt 0:00:11]} Bc5 {[%emt 0:00:13]} 5. Bxc6 {[%emt 0:00:32]} dxc6 {[%emt 0:00:16]} 6. Bg5 {[%emt 0:00:43] C65: Ruy Lopez: Berlin Defence (3...Nf6), unusual lines and 4 0-0 Bc5.} Qe7 {[%emt 0:11:11]} 7. Nbd2 {[%emt 0:01:58]} h6 {[%emt 0:21:13]} 8. Bh4 {[%emt 0:00:38] The position is equal.} Bd6 {[%emt 0:01:14]} 9. O-O {[%emt 0:07:50] [#]} g5 $146 {[%emt 0:07:41]} ({Predecessor:} 9... Bg4 10. h3 Bh5 11. d4 O-O-O 12. Re1 Qe6 13. c4 Bxf3 14. Nxf3 Qxc4 15. dxe5 Bxe5 16. Nxe5 {1-0 Carlsen,M (2855)-Nakamura,H (2736) Meltwater Tour Final rapid 2021 (5.3)}) 10. Bg3 {[%emt 0:00:14]} Bg4 {[%emt 0:01:18]} 11. d4 {[%emt 0:04:25][%cal Rd4e5]} Nd7 {[%emt 0:01:35]} 12. Nc4 {[%emt 0:01:44]} Bxf3 {[%emt 0:02:29]} 13. Qxf3 {[%emt 0:02:18]} exd4 {[%emt 0:01:12] [#]} 14. e5 $1 {[%emt 0:14:47]} Bc5 {[%emt 0:02:08] [#] Strongly threatening ...0-0-0.} (14... Bxe5 $2 15. Bxe5 O-O 16. Bxd4 $18) 15. e6 $1 {[%emt 0:01:29][%mdl 64] Discovered Attack} fxe6 {[%emt 0:02:39]} (15... Qxe6 $2 16. Rae1 O-O-O 17. Rxe6 fxe6 18. Qe4 $18) 16. Bxc7 {[%emt 0:00:11]} Nb6 {[%emt 0:06:54]} 17. Bxb6 {[%emt 0:02:57]} Bxb6 {[%emt 0:03:34]} 18. Ne5 $36 {[%emt 0:05:34][%mdl 2048] Ng6 would be deadly. White fights for an advantage.} Rf8 {[%emt 0:05:19]} 19. Qh5+ {[%emt 0:10:30]} Kd8 {[%emt 0:00:11]} 20. Rae1 {[%emt 0:03:10]} Kc7 {[%emt 0:04:11]} (20... Qg7 $1 $14) 21. Qxh6 $16 {[%emt 0:04:58]} Rh8 {[%emt 0:04:40]} 22. Qg6 {[%emt 0:00:22] White is more active.} Rag8 {[%emt 0:01:11]} 23. Qe4 {[%emt 0:06:14] Hoping for Ng6.} Rh4 {[%emt 0:07:33]} 24. Ng4 {[%emt 0:01:26]} Re8 {[%emt 0:01:42]} 25. g3 {[%emt 0:00:37]} Rhh8 {[%emt 0:02:21]} 26. Re2 {[%emt 0:02:16]} Rhf8 {[%emt 0:02:18]} 27. Rfe1 {[%emt 0:01:05]} Qd8 {[%emt 0:04:00]} 28. Qh7+ {[%emt 0:05:59]} Re7 {[%emt 0:02:09]} 29. Qh6 {[%emt 0:01:25]} Ba5 {[%emt 0:03:38]} 30. Rd1 {[%emt 0:01:23]} Rfe8 {[%emt 0:01:26]} (30... Ref7 $142 31. Qxe6 Rd7) 31. Qxg5 $18 {[%emt 0:01:18]} (31. Nf6 $6 Rf8) 31... Kc8 {[%emt 0:00:10]} 32. Qe5 {[%emt 0:01:51]} Rd7 {[%emt 0:00:40]} 33. Qf6 {[%emt 0:03:35]} ({Much less strong is} 33. Nf6 Bc7 34. Qh5 Rh8 $18) 33... Ree7 {[%emt 0:00:55]} (33... Rd6 $142 34. h4 Qxf6 35. Nxf6 Rf8) 34. Rxe6 {[%emt 0:06:25]} d3 {[%emt 0:00:17]} (34... Rxe6 $142 35. Qxe6 Kb8) 35. Rxd3 {[%emt 0:00:56] aiming for Rxe7. White is clearly winning.} Rxd3 {[%emt 0:00:18]} 36. cxd3 {[%emt 0:00:19]} Bb4 {[%emt 0:00:39]} 37. Rxe7 {[%emt 0:02:23]} Bxe7 {[%emt 0:00:06]} 38. Qe6+ {[%emt 0:00:07]} Kb8 {[%emt 0:00:06]} 39. Ne5 {[%emt 0:00:10]} a6 {[%emt 0:01:35]} 40. h4 {[%emt 0:01:12]} Ka7 {[%emt 0:00:19]} 41. Qd7 {[%emt 0:00:14] Weighted Error Value: White=0.06 (flawless) /Black=0.29 (precise)} 1-0

[Event "10th Cherry Blossom Classic 2023"]
[Site "Dulles"]
[Date "2023.05.27"]
[Round "4.15"]
[White "Ling, Evan"]
[Black "Marjanovic, Annamaria"]
[Result "0-1"]
[ECO "A90"]
[WhiteElo "1952"]
[BlackElo "2273"]
[Annotator "TA"]
[PlyCount "92"]
[EventDate "2023.05.24"]
[EventType "swiss"]
[EventCountry "USA"]
[SourceTitle "playchess.com"]
[Source "ChessBase"]
[SourceQuality "1"]
[TimeControl "5400+30"]

{[%evp 17,92,15,32,27,32,15,29,11,47,41,46,9,30,29,37,31,31,11,14,11,41,37,42,34,27,15,39,0,0,-19,0,-52,-29,-59,0,-2,-16,-102,-93,-161,-121,-281,-287,-385,-389,-632,-466,-807,-750,-705,-201,-318,-299,-272,-264,-229,-225,-891,-854,-29984,-29985,-29988,-29989,-29989,-29990,-29991,-29992,-29992,-29992,-29996,-29995,-29995,-29996,-29996,-29996,-29996,-29996]} 1. d4 {[%emt 0:00:01]} f5 {[%emt 0:01:20]} 2. g3 {[%emt 0:00:06]} Nf6 {[%emt 0:00:15]} 3. Bg2 {[%emt 0:00:06]} e6 {[%emt 0:00:07]} 4. Nf3 {[%emt 0:00:23]} d5 {[%emt 0:00:07]} 5. O-O {[%emt 0:00:05]} Bd6 {[%emt 0:00:06]} 6. c4 {[%emt 0:00:03]} c6 {[%emt 0:00:05]} 7. Qc2 {[%emt 0:00:02]} O-O {[%emt 0:00:47]} 8. Bf4 {[%emt 0:00:03]} Bxf4 {[%emt 0:02:06]} 9. gxf4 {[%emt 0:00:12]} Ne4 {[%emt 0:00:16]} 10. e3 {[%emt 0:01:29] has lost popularity (10.Nc3). A90: Dutch Defence: Miscellaneous and Modern Stonewall (with ...Bd6).} Rf6 {[%emt 0:06:52]} 11. Nbd2 {[%emt 0:11:46]} Nd7 {[%emt 0:05:15]} 12. Rfc1 {[%emt 0:06:37] [#] White has an edge.} Nf8 $146 {[%emt 0:12:30]} ({Predecessor:} 12... Rh6 13. b4 Ndf6 14. Ne5 Nxd2 15. Qxd2 Nd7 16. cxd5 Nxe5 17. dxe5 cxd5 18. Qc3 Bd7 19. Qc7 {1-0 Goodman,C-Balacco,G IECC T127405 2015}) 13. Ne5 {[%emt 0:04:02][%cal Rg2e4]} Rh6 {[%emt 0:08:26]} 14. Nf1 {[%emt 0:02:54]} Bd7 {[%emt 0:05:53]} 15. c5 {[%emt 0:02:22]} Be8 {[%emt 0:01:16]} 16. f3 {[%emt 0:00:05]} Nf6 {[%emt 0:00:05]} 17. b4 {[%emt 0:01:13]} N6d7 {[%emt 0:00:48]} 18. Nd3 {[%emt 0:03:11]} Ng6 {[%emt 0:02:41]} 19. a4 {[%emt 0:05:27]} Nh4 {[%emt 0:00:25]} 20. Ng3 {[%emt 0:00:39]} g5 {[%emt 0:09:49]} 21. fxg5 {[%emt 0:04:15]} Qxg5 {[%emt 0:00:06]} 22. f4 {[%emt 0:00:11]} Qg7 {[%emt 0:05:42]} 23. Bh1 {[%emt 0:00:06]} Bh5 {[%emt 0:01:33]} (23... Nf6 {simplifies} 24. Ne5 Ng4 25. Nxg4 fxg4 26. Qf2 Bg6) 24. Qf2 {[%emt 0:03:23] Inhibits Bf3.} (24. Kf2 $11) 24... Kh8 {[%emt 0:05:50]} 25. b5 {[%emt 0:00:54]} Nf6 $1 {[%emt 0:03:25] Strongly threatening ...Ng4.} 26. Ne5 {[%emt 0:00:07]} Ne4 {[%emt 0:01:01]} 27. Bxe4 {[%emt 0:00:25]} (27. Qe1 $1 $11 {keeps the balance.}) 27... fxe4 $17 {[%emt 0:00:50]} 28. bxc6 {[%emt 0:00:41]} (28. Kf1 $17 {is a better defense.}) 28... bxc6 $19 {[%emt 0:00:08]} 29. a5 $2 {[%emt 0:06:04] This costs White the game.} (29. Nxc6 $2 {too greedy.} Nf3+ 30. Kh1 Bg4 $19) (29. Rcb1 $17) 29... Nf3+ {[%emt 0:01:56]} 30. Nxf3 {[%emt 0:04:33]} Bxf3 {[%emt 0:00:39] White is weak on the light squares} 31. a6 $2 {[%emt 0:00:08]} (31. Kf1 Rg8 32. Ke1) 31... Rg6 {[%emt 0:06:01]} 32. Rcb1 {[%emt 0:15:10]} (32. Kf1 $142 h5 33. Ke1) 32... h5 {[%emt 0:00:53][%cal Bh7h5,Bh5h4,Bh4g3][%mdl 32]} 33. Rb7 {[%emt 0:00:05]} Qf6 $2 {[%emt 0:04:19]} (33... Qh6 {Threatens to win with ...h4.} 34. Kf1 h4) 34. Rab1 {[%emt 0:07:08]} (34. Kf1 $142 h4 35. Ke1 (35. Ne2 $2 Rag8 $19)) 34... h4 {[%emt 0:00:40][%mdl 64] Pin} 35. Rb8+ {[%emt 0:01:20]} Rxb8 {[%emt 0:00:09]} 36. Rxb8+ {[%emt 0:00:02] [#]} Kh7 $1 {[%emt 0:00:11][%cal Bh8h7,Bh7g6,Bg6h6][%mdl 32]} 37. Qb2 $2 {[%emt 0:04:03]} (37. Rb7+ Rg7 {[%mdl 64] Pin} 38. Kf1 hxg3 39. Qxg3) 37... hxg3 {[%emt 0:02:54]} 38. h3 {[%emt 0:00:04] [#]} Rh6 $1 {[%emt 0:01:14] Black mates.} 39. Rb7+ {[%emt 0:12:34]} Kg6 {[%emt 0:00:34]} 40. f5+ {[%emt 0:00:33]} exf5 {[%emt 0:01:41]} 41. Rb8 {[%emt 0:01:48]} Rxh3 {[%emt 0:00:14][%csl Gf3][%cal Rh3h1]} 42. Rg8+ {[%emt 0:03:05]} Kh6 {[%emt 0:00:26][%csl Gf3][%cal Rh3h1]} 43. Rxg3 {[%emt 0:01:44]} Rxg3+ {[%emt 0:00:04]} 44. Kf1 {[%emt 0:00:04]} Qh4 {[%emt 0:00:28]} 45. Qg2 {[%emt 0:01:12]} Bxg2+ {[%emt 0:00:11]} 46. Ke2 {[%emt 0:00:06]} Bf3+ {[%emt 0:00:11] Weighted Error Value: White=0.66/Black=0.26 (precise)} 0-1